Cogmind - Beta 12 X6 @@@ ROGUE MODE // 2023.02.08 @ 08:44:13 Player: youngster Result: Destroyed by C-17 Slicer with Backup Laser I Performance ------------- Evolutions (2) 1000 Regions Visited (5) 1000 Robots Destroyed (92) 460 Value Destroyed (2175) 2175 Prototype IDs (25) 500 Alien Tech Used (0) 0 Bonus (272) 272 TOTAL SCORE: 5407 Bonus ------- High Alert Combat Kills 203 Follower Combat Kills 85 Friendly Fire -16 Cogmind --------- Core Integrity 0/550 Matter 232/300 Energy 57/100 System Corruption 0% Temperature Cool (27) Movement Core (50) Location -8/Materials Parts ------- > --- POWER (1) -------- (None) > --- PROPULSION (3) --- (None) > --- UTILITY (5) ------ (None) > --- WEAPON (2) ------- (None) > --- INVENTORY (5) ---- Heavy Hammer Peak State ------------ > --- POWER ------------ Improved Ion Engine > --- PROPULSION ------- Light Treads Light Treads Light Treads > --- UTILITY ---------- High-capacity Storage Unit Advanced Targeting Computer System Shield Decoy Drone Bay > --- WEAPON ----------- Improved EM Pulse Cannon Minigun > --- INVENTORY -------- Improved Ion Engine Light Treads Improved Cooling System Hardened Medium Armor Plating Improved Shield Generator Hacking Suite Improved Trap Extractor Army-in-a-Box Light EM Pulse Cannon Light EM Pulse Cannon Improved EM Pulse Cannon Heavy Assault Rifle Heavy Assault Rifle Rocket Launcher Maul [Rating: 42] Favorites ----------- Power Ion Engine Engine Ion Engine Power Core Light Nuclear Core Propulsion Light Treads Treads Light Treads Wheel Compact Wheel Utility Large Storage Unit Device Seismic Detector Storage Large Storage Unit Processor Advanced Targeting Computer Hackware System Shield Protection Core Shielding Weapon Medium Laser Energy Gun Medium Laser Energy Cannon Improved EM Pulse Cannon Ballistic Gun Minigun Ballistic Cannon Light Cannon Launcher Rocket Launcher Impact Weapon Maul Build | -11 -10 -10 -10 -9 -8 ------- Run | Jun Mat Min Exi Min Mat Slots Evolved 4 | . . . . . 4 Power . | . . . . . . Propulsion 1 | . . . . . 1 Utility 3 | . . . . . 3 Weapon . | . . . . . . Parts Attached 113 | 7 18 12 5 12 59 Power 6 | 1 1 . . 1 3 Engine 5 | 1 1 . . 1 2 Core 1 | . . . . . 1 Reactor . | . . . . . . Propulsion 19 | 2 3 1 . 2 11 Treads 15 | 2 . . . 2 11 Leg . | . . . . . . Wheel 4 | . 3 1 . . . Hover . | . . . . . . Flight . | . . . . . . Utility 44 | 2 6 5 3 6 22 Device 25 | 1 1 4 1 2 16 Storage 6 | 1 3 . 1 . 1 Processor 2 | . . . . 1 1 Hackware 2 | . . . . . 2 Protection 9 | . 2 1 1 3 2 Artifact . | . . . . . . Weapon 44 | 2 8 6 2 3 23 Energy Gun 5 | 1 3 1 . . . Energy Cannon 10 | . . . . . 10 Ballistic Gun 11 | 1 . . 2 2 6 Ballistic Cannon 1 | . 1 . . . . Launcher 11 | . 2 4 . 1 4 Special Weapon . | . . . . . . Impact Weapon 6 | . 2 1 . . 3 Slashing Weapon . | . . . . . . Piercing Weapon . | . . . . . . Special Melee Weapon . | . . . . . . Unidentified Prototypes 2 | . . . 1 . 1 Parts Lost 23 | . 5 1 . . 17 Power 4 | . 1 . . . 3 Propulsion 9 | . 2 . . . 7 Utility 5 | . 1 . . . 4 Weapon 5 | . 1 1 . . 3 Highest Loss Streak 10 | . 3 1 . . 10 To Critical Strikes . | . . . . . . Average Slot Usage (%) 96 | . 99 96 98 100 92 Engine 11 | . 13 14 14 14 5 Core 1 | . . . . . 3 Treads 17 | . 21 . . 16 25 Wheel 9 | . 6 28 28 11 . Device 7 | . 2 7 9 3 13 Storage 12 | . 14 14 13 14 9 Processor 3 | . . . . 7 9 Hackware 2 | . . . . . 7 Protection 5 | . 11 6 3 2 2 Energy Gun 7 | . 15 14 . . . Energy Cannon 3 | . . . . . 9 Ballistic Gun 6 | . 2 . 12 25 6 Ballistic Cannon 3 | . 9 . . . . Impact Weapon 3 | . . 9 14 2 1 Naked Turns 2 | . . . . . 2 Heaviest Build 72 | 15 32 33 39 40 72 Greatest Support 60 | 40 40 26 26 40 60 Greatest Overweight (x) 2 | . 1 1 1 1 2 Average Overweight (x) . | . . 1 . . . Largest Inventory Capacity 20 | 8 15 15 15 15 20 Average Capacity 15 | 7 14 15 14 15 19 Most Carried 20 | 4 15 15 15 15 20 Average Carried 14 | 3 10 14 14 14 18 Final Capacity 15 | 8 15 15 15 15 5 Final Carried 15 | 4 15 15 15 15 1 Class Distribution -------------------- 81% | Mutant 18% | Scavenger-Mutant Dominant Class ---------------- Mutant | -10/Materials Mutant | -10/Mines Mutant | -10/Exiles Mutant | -9/Mines Scavenger-Mutant | -8/Materials Resources | -11 -10 -10 -10 -9 -8 ----------- Run | Jun Mat Min Exi Min Mat Matter Collected 2130 | 240 442 346 71 191 840 Remotely . | . . . . . . Salvage Created 3073 | 73 631 283 67 124 1895 Parts 154 | 5 44 11 . 7 87 Haulers Intercepted 4 | . 2 . . . 2 Recyclers Shooed 3 | 1 . 1 . 1 . Parts Field Recycled . | . . . . . . Retrieved Matter . | . . . . . . Parts Self-Destructed . | . . . . . . Prevented . | . . . . . . Kills | -11 -10 -10 -10 -9 -8 ------- Run | Jun Mat Min Exi Min Mat Combat Hostiles Destroyed 65 | . 19 10 . 3 33 Melee 3 | . 1 . . . 2 Guns 13 | . 6 . . . 7 Cannons 25 | . 12 . . . 13 AOE 22 | . . 10 . 3 9 Classes Destroyed 12 | 2 5 . . . 5 Worker 6 | . 2 2 . 1 1 Builder 1 | . . . . . 1 Tunneler 3 | 1 . 2 . . . Hauler 4 | . 2 . . . 2 Recycler 10 | 1 1 2 . 1 5 Watcher 3 | . 1 . . . 2 Swarmer 23 | . 6 8 . 3 6 Cutter 1 | . . . . . 1 Grunt 31 | . 13 2 . . 16 Brawler 2 | . . . . . 2 Duelist 1 | . . . . . 1 Sentry 7 | . . . . . 7 Best Kill Streak 6 | 1 5 6 . 3 6 Combat Bots Only 6 | . 4 6 . 3 4 Max Kills in Single Turn 4 | 1 2 3 . 2 4 Gunslinging . | . . . . . . Exploded 3 | . . 3 . 2 3 Melee 1 | . 1 . . . 1 Uniques/NPCs Destroyed . | . . . . . . Combat | -11 -10 -10 -10 -9 -8 -------- Run | Jun Mat Min Exi Min Mat Damage Taken 4326 | . 1008 140 . 35 3143 Core 748 | . 156 29 . 7 556 Absorbed by Shields 264 | . . . . . 264 Redirected to Shielding 23 | . 17 6 . . . Core Remaining (%) 61 | 100 . . . 23 . Volleys Fired 185 | 6 81 10 . 5 83 Largest 2 | 2 2 1 . 2 2 Hottest 138 | 70 85 40 . 45 138 Shots Fired 328 | 12 160 11 1 8 136 Gun 196 | 12 99 2 1 6 76 Cannon 109 | . 60 . . . 49 Launcher 23 | . 1 9 . 2 11 Special . | . . . . . . Kinetic 168 | 6 79 . 1 6 76 Thermal 84 | 6 78 . . . . Explosive 23 | . 1 9 . 2 11 Electromagnetic 53 | . 2 2 . . 49 Robot Hit Streak 19 | 4 10 4 5 2 19 Robot Miss Streak 4 | 1 4 . . 4 2 Penetration Max . | . . . . . . Secondary Targets . | . . . . . . Shots Hit Robots 230 | 7 96 10 4 4 109 Core Hits 127 | 3 37 14 2 5 66 Critical Kills 1 | . . . 1 . . Critical Parts Destroyed 5 | . . 2 . . 3 Critical Strikes 15 | 1 7 2 1 . 4 Burn 5 | 1 4 . . . . Destroy 2 | . . . . . 2 Blast 3 | . 3 . . . . Corrupt 1 | . . . . . 1 Smash 4 | . . 2 1 . 1 Melee Attacks 29 | . 3 8 3 3 12 Impact 29 | . 3 8 3 3 12 Slashing . | . . . . . . Piercing . | . . . . . . Sneak Attacks 9 | . . 6 . 2 1 Combat Hostiles . | . . . . . . Follow-up Attacks . | . . . . . . Damage Inflicted 7199 | 93 1441 1305 255 330 3775 Guns 1900 | 93 723 30 20 34 1000 Cannons 1732 | . 688 . . . 1044 Explosions 2352 | . . 780 . 143 1429 Melee 1148 | . . 495 235 148 270 Ramming 67 | . 30 . . 5 32 Kinetic 1923 | 28 841 . 20 34 1000 Thermal 723 | 65 570 . . . 88 Explosive 2264 | . . 780 . 143 1341 Electromagnetic 1074 | . . 30 . . 1044 Impact 1148 | . . 495 235 148 270 Slashing . | . . . . . . Piercing . | . . . . . . Highest Corruption 9 | . 9 9 9 9 . Average Corruption 8 | . 8 9 9 9 . Corruption Purged . | . . . . . . Corruption Blocked . | . . . . . . Effects 72 | . 9 25 17 21 . Message Errors 16 | . 2 7 4 3 . Matter Fused 16 | . 2 7 2 5 . Heat Flow Errors 4 | . . . . 4 . Energy Discharges 15 | . 1 2 7 5 . Data Loss (minor) 6 | . . 3 2 1 . Data Loss (major) 7 | . 1 3 1 2 . Misfires 5 | . 2 1 1 1 . Alerts 3 | . 1 2 . . . Overload Shots . | . . . . . . Overflow Damage 497 | . . 272 7 66 152 Projectiles 20 | . . . . . 20 Explosions 87 | . . 14 . . 73 Melee 390 | . . 258 7 66 59 Knockbacks 19 | . 12 2 2 . 3 Impact 7 | . . 2 2 . 3 Kinetic 12 | . 12 . . . . Secondary . | . . . . . . Self-Inflicted Damage 233 | . . 49 . . 184 Shots 6 | . . 1 . . 5 Rammed 16 | . 3 . . 2 11 Targets Rammed 19 | . 4 . . 2 13 Kicked . | . . . . . . Crushed 3 | . 1 . . . 2 Highest Temperature 346 | 27 346 40 5 229 180 Average Temperature 54 | 11 65 13 5 71 29 Received Heat Transfer 1802 | . 273 33 . 6 1490 Siege Activations . | . . . . . . Robots Corrupted 2 | . . . . . 2 Combat Hostiles 2 | . . . . . 2 Parts Fried 11 | . . 6 . 1 4 Impact Corruptions 11 | . . 7 1 1 2 Robots Melted . | . . . . . . Combat Hostiles . | . . . . . . Parts Melted 3 | 1 2 . . . . Heat Transferred 2320 | 259 1961 . . . 100 Parts Sabotaged . | . . . . . . Parts Stolen . | . . . . . . Parts Stripped . | . . . . . . Power Chain Reactions 2 | . . . . . 2 Missiles Intercepted . | . . . . . . Alert | -11 -10 -10 -10 -9 -8 ------- Run | Jun Mat Min Exi Min Mat Peak Influence 656 | 10 468 447 . 125 656 Initial 142 | . 6 142 . . . Average 256 | 4 239 311 . 69 322 Maximum Alert Level 2 | . 2 2 . . 2 Low Security (%) 39 | 100 35 9 . 100 33 Level 1 30 | . 44 53 . . 18 Level 2 30 | . 20 37 . . 48 Level 3 . | . . . . . . Level 4 . | . . . . . . Level 5 . | . . . . . . High Security . | . . . . . . Max Security . | . . . . . . Squads Dispatched 13 | . 5 . . . 8 Investigation 5 | . 3 . . . 2 Extermination . | . . . . . . Reinforcement 7 | . 2 . . . 5 Assault 1 | . . . . . 1 Garrison . | . . . . . . Intercept . | . . . . . . Searches Triggered . | . . . . . . Construction Impeded 2 | . . . . . 2 Haulers Reinforced . | . . . . . . Active Scanning Responses . | . . . . . . Cargo Convoy Interrupts . | . . . . . . Stealth | -11 -10 -10 -10 -9 -8 --------- Run | Jun Mat Min Exi Min Mat Distress Signals 10 | . 1 . . . 9 Communications Jammed . | . . . . . . Distress Signals . | . . . . . . Times Spotted 125 | . 37 8 . 5 75 Peak Tracking Total 12 | . 4 3 . 3 12 Tactical Retreats 12 | . 6 . . . 6 Traps | -11 -10 -10 -10 -9 -8 ------- Run | Jun Mat Min Exi Min Mat Traps Triggered 2 | . 1 . . . 1 Indirectly . | . . . . . . Trap Hack Attempts . | . . . . . . Triggered . | . . . . . . Disarmed . | . . . . . . Reprogrammed . | . . . . . . Reused 3 | . . . . . 3 Traps Extracted . | . . . . . . Installed 3 | . . . . . 3 Triggered 3 | . . . . . 3 Most Traps Carried 3 | . . 3 3 3 3 Machines | -11 -10 -10 -10 -9 -8 ---------- Run | Jun Mat Min Exi Min Mat Machines Disabled 4 | . . . . . 4 Max in Single Turn 1 | . . . . . 1 Machines Repaired . | . . . . . . Machines Sabotaged . | . . . . . . Overloaded Fab Kills . | . . . . . . Hacking | -11 -10 -10 -10 -9 -8 --------- Run | Jun Mat Min Exi Min Mat Machines Accessed 21 | . 8 3 2 . 8 Terminals 12 | . 6 1 . . 5 Fabricators . | . . . . . . Repair Stations . | . . . . . . Recycling Units 2 | . 2 . . . . Scanalyzers 2 | . . . . . 2 Garrison Access 1 | . . . . . 1 Total Hacks 55 | . 19 5 2 . 29 Successful 32 | . 14 3 2 . 13 Failed 23 | . 5 2 . . 16 Catastrophic 4 | . 1 1 . . 2 Database Lockouts . | . . . . . . Manual 32 | . 15 3 1 . 13 Terminals 38 | . 17 3 . . 18 Fabricators . | . . . . . . Repair Stations . | . . . . . . Recycling Units 2 | . 2 . . . . Scanalyzers 10 | . . . . . 10 Garrison Access 1 | . . . . . 1 Terminal Hacks 16 | . 7 3 2 . 4 Record 1 | . . . 1 . . Part Schematic 1 | . 1 . . . . Robot Schematic 1 | . . 1 . . . Robot Analysis 2 | . 2 . . . . Open Door 2 | . . 2 . . . Alert Level 1 | . . . . . 1 Unreport Threat 1 | . . . . . 1 Locate Traps 4 | . 2 . . . 2 Zone Layout 2 | . 2 . . . . EX-Prototype ID Bank 1 | . . . 1 . . Fabricator Hacks . | . . . . . . Repair Station Hacks . | . . . . . . Recycling Unit Hacks . | . . . . . . Scanalyzer 7 | . . . . . 7 Insert Component 3 | . . . . . 3 Analyze 4 | . . . . . 4 Garrison Access Hacks 1 | . . . . . 1 Unlock Access 1 | . . . . . 1 Unauthorized Hacks 8 | . 7 . . . 1 Terminals 6 | . 5 . . . 1 Assimilate 2 | . 2 . . . . Botnet 3 | . 2 . . . 1 Operators 1 | . 1 . . . . Fabricators . | . . . . . . Repair Stations . | . . . . . . Recycling Units 2 | . 2 . . . . Tunnel 2 | . 2 . . . . Scanalyzers . | . . . . . . Garrison Access . | . . . . . . Data Cores Recovered . | . . . . . . Used . | . . . . . . Hacking Detections 13 | . 5 1 . . 7 Full Trace Events 4 | . 2 . . . 2 Feedback Events . | . . . . . . Feedback Blocked . | . . . . . . Robot Schematics Acquired 1 | . . 1 . . . Robots Built . | . . . . . . Authchips . | . . . . . . Time . | . . . . . . Total Robot Build Rating . | . . . . . . Part Schematics Acquired 3 | . 1 . . . 2 Parts Built . | . . . . . . Authchips . | . . . . . . Time . | . . . . . . Total Part Build Rating . | . . . . . . Parts Repaired . | . . . . . . Time . | . . . . . . Parts Recycled . | . . . . . . Recycled Matter . | . . . . . . Retrieved Matter . | . . . . . . Retrieved Components . | . . . . . . Parts Scanalyzed 3 | . . . . . 3 Part Schematics Acquired 2 | . . . . . 2 Parts Damaged 1 | . . . . . 1 Bothacking | -11 -10 -10 -10 -9 -8 ------------ Run | Jun Mat Min Exi Min Mat Used RIF Installer . | . . . . . . Robots Hacked . | . . . . . . Non-combat . | . . . . . . Combat . | . . . . . . Robot Hacks Applied . | . . . . . . Relay Couplers Released . | . . . . . . Fabnet Peak Effective % . | . . . . . . Robots Rewired 3 | . . . 3 . . Allies Hacked . | . . . . . . Hacks Repelled . | . . . . . . Allies | -11 -10 -10 -10 -9 -8 -------- Run | Jun Mat Min Exi Min Mat Total Allies 4 | . 1 . 3 . . Largest Group 3 | . 1 . 3 3 . Highest-Rated Group 37 | . 10 . 37 37 . Highest-Rated Ally 21 | . 10 . 21 21 . Total Orders 10 | . 9 . 1 . . STAY 6 | . 6 . . . . FOLLOW 3 | . 3 . . . . RETURN 1 | . . . 1 . . Ally Attacks 22 | . . . . 22 . Total Damage 371 | . . . . 371 . Kills 3 | . . . . 3 . Allies Corrupted . | . . . . . . Allies Melted . | . . . . . . Intel | -11 -10 -10 -10 -9 -8 ------- Run | Jun Mat Min Exi Min Mat Robot Analysis Total 2 | . 2 . . . . Derelict Logs Recovered 2 | . . 1 . 1 . Drone Launches 17 | . . . 1 . 16 Drone Recoveries 1 | . . . 1 . . Exploration | -11 -10 -10 -10 -9 -8 ------------- Run | Jun Mat Min Exi Min Mat Turns Passed 5328 | 136 1777 654 539 474 1748 Spaces Moved 2900 | 66 957 549 451 284 593 Core 4 | 3 . . . . 1 Treads 1348 | 63 530 . . 163 592 Legs . | . . . . . . Wheels 1548 | . 427 549 451 121 . Hover . | . . . . . . Flight . | . . . . . . Fastest Speed 50 | 50 105 105 90 105 50 Average Speed 140 | 155 137 105 104 136 205 Slowest Speed 330 | 160 160 105 105 240 330 Overloaded Moves . | . . . . . . Propulsion Burnouts . | . . . . . . Robots Hopped . | . . . . . . Cave-ins Triggered 2 | . 1 . . . 1 Exploration Rate (%) 69 | 6 98 98 87 50 78 Regions Visited 5 Branch Regions 3 Pre-discovered Areas 3 | . 2 . 1 . . Known Exits Taken . | . . . . . . Unknown Exits Taken 5 | 1 1 1 1 1 . Scrap Searched 2 | . . 1 . 1 . Spaces Dug 97 | . 15 37 . 1 44 Terrain Destroyed 226 | . 15 67 . 24 120 Melee 8 | . 2 1 . 1 4 Projectile . | . . . . . . AOE 218 | . 13 66 . 23 116 Terrain Rammed . | . . . . . . Walls Destroyed . | . . . . . . Machines Disabled . | . . . . . . Actions | -11 -10 -10 -10 -9 -8 --------- Run | Jun Mat Min Exi Min Mat Total 3755 | 84 1250 603 515 353 950 Wait 359 | 2 162 10 4 40 141 Move 2895 | 65 956 548 450 283 593 Hop . | . . . . . . Pick Up 58 | 4 16 5 11 2 20 Fast Attach 27 | 7 3 . 3 3 11 Attach 31 | . 7 5 2 . 17 Detach 18 | . 4 4 2 . 8 Swap 56 | . 8 7 . 9 32 Drop 46 | . 6 6 11 6 17 Fire 185 | 6 81 10 . 5 83 Melee 29 | . 3 8 3 3 12 Ram . | . . . . . . Kick . | . . . . . . Crush 19 | . 4 . . 2 13 Escape Stasis . | . . . . . . Rewire 29 | . . . 29 . . Trap 3 | . . . . . 3 Miscellaneous . | . . . . . . Route ------- -11/Junkyard -10/Materials (discovered 4 exits: [*Mat x2] / *Min x2) -10/Mines (discovered 3 exits: [*Mat x2] / *Exi) -10/Exiles (discovered 2 exits: [*Min x2]) -9/Mines -8/Materials (discovered 4 exits: *Fac x3 / Gar) History --------- Turn | Location | Event 2 | -11/Junkyard | Met Revision 17 36 | -11/Junkyard | Discovered new exit (range 15) 137 | -11/Junkyard | Entered Materials 315 | -10/Materials | Build established: Mutant 456 | -10/Materials | Discovered new exit (range 16) 876 | -10/Materials | Discovered new exit (range 11) 1455 | -10/Materials | Discovered new exit (range 16) 1650 | -10/Materials | Crushed by falling debris 1650 | -10/Materials | Core integrity fell below 50% 1681 | -10/Materials | Lost 3 parts (1n1u1w) 1694 | -10/Materials | Discovered new exit (range 13) 1914 | -10/Materials | Entered Mines 1919 | -10/Mines | Found the Drone Emporium 1929 | -10/Mines | Found Prototype Device 1946 | -10/Mines | Deemed a non-threat by the Exiles lab entrance 1946 | -10/Mines | Discovered new exit (range 5) 1947 | -10/Mines | Met a Derelict bent on vengeance 1951 | -10/Mines | Discovered new exit (range 12) 2054 | -10/Mines | Discovered new exit (range 8) 2135 | -10/Mines | Met a Derelict who couldn't figure out how to use a Trap Extractor 2364 | -10/Mines | Found a hidden stash of uninstalled traps 2568 | -10/Mines | Entered Exiles 2568 | -10/Exiles | Found Exiles lab destroyed 2585 | -10/Exiles | Discovered new exit (range 15) 2753 | -10/Exiles | Learned location of Zion (-6) 2809 | -10/Exiles | Opened EX-Vault 2826 | -10/Exiles | Found Army-in-a-Box 2946 | -10/Exiles | Identified Decoy Drone Bay 3090 | -10/Exiles | Discovered new exit (range 14) 3107 | -10/Exiles | Entered Mines 3107 | -9/Mines | Accompanied by 3 allies 3115 | -9/Mines | Learned location of 2 exits from Materials 3225 | -9/Mines | Discovered new exit (range 4) 3291 | -9/Mines | Joined a pair of Derelicts in attacking an 0b10 outpost 3422 | -9/Mines | Assembled infested the area 3427 | -9/Mines | Assisted by a Guerilla fighting off Assembled 3581 | -9/Mines | Entered Materials 3581 | -8/Materials | Evolved 4 slots: Propulsion x1, Utility x3 3582 | -8/Materials | Identified exit to Factory 3843 | -8/Materials | Crushed by falling debris 4058 | -8/Materials | Build established: Scavenger-Mutant 4731 | -8/Materials | Identified exit to Garrison 5181 | -8/Materials | First assault squad dispatched 5239 | -8/Materials | Build established: Mutant 5258 | -8/Materials | Discovered exit to Factory (range 80) 5293 | -8/Materials | Core integrity fell below 50% 5323 | -8/Materials | Core integrity fell below 20% 5327 | -8/Materials | Released all parts (2) 5329 | -8/Materials | Destroyed by C-17 Slicer with Backup Laser I Last Messages --------------- 05311_ The unstable cave ceiling collapses. 05311_ Arm. Treads destroyed. 05312_ K-01 Serf collects debris. 05313_ The unstable cave ceiling collapses. 05313_ K-01 Serf collects debris. 05314_ U-05 Engineer lays Concrete. 05315_ Lgt. Treads destroyed. 05316_ U-05 Engineer builds a Wall. 05319_ Imp. EM Pulse Cannon destroyed. 05321_ U-05 Engineer lays Concrete. 05322_ Slammed into G-47 Trooper. 05322_ G-47 Trooper knocked back. 05323_ U-05 Engineer builds a Wall. 05323_ K-01 Serf collects debris. 05327_ Arm. Treads destroyed. 05327_ K-01 Serf collects debris. 05327_ Released Hcp. Storage Unit. 05327_ Released Adv. Targeting Computer. 05328_ U-05 Engineer lays Concrete. 05328_ Acquired Hvy. Hammer. Map ----- +----------------------------------------------------+ | | | | | | | | | | | | | | | | | | | ?????????????????????????????????????????????????? | | ?????????????????????????????????????????????????? | | ?????????????????????????????????????????????????? | | ?????????????????????????????????????????????????? | | ?????????????????????###########?????????????????? | | ?????????????????????# #?????????????????? | | ??????????????######## """ " #???########??????? | | ??????????????# [ # """ T #???# #??????? | | ??????????????# # """ " #???# #??????? | | ??????????????# # #???# #??????# | | ??????????????# [ # [ #???# #?????## | | ??????????????# # ##### #??#### | | ??????????????#[ % # # #### ## | | ??????????????####+######;### #! # # ### | | ??????????????# [![ *% k ! | | ??????????????# < [kcgc g / = % ! | | ??????????????# @g] c i = ! u ! % | | ??????????????############!#### # ###! ###+### | | #####????????????????????# #??### # # *%/ | | #????????????????????# #????# ! # # [ "" | | "" #????????????????????#=#????# / %# "" | | "" =#????????????????????# ##???# # # """ | | "" ###########??????????# T#???# "Y" # # | | # #########??# ##???# """ # # """ | | # ## #### ##???######## # """ | | ###+# ## ! # #?########## # " """ | | + """ ## # / #?? ! # # T | | +# # """ """ ## # #???? """ # " | | # # "G> """ ## # #??! R"# # | | + # """ ## # #??? """# ####%## | | # # #####+##### ###????" ?# #???##? | | # #####+####### #?# #??????? ??# #?????? | | # ### #????????????# %#?????? | | + #????????????# #?????? | | # % ### #?????##+#####% #?????? | | ### ####+####### # # ##????# #?????? | | #?# # ############ ####### #?????? | | #?# # """ ## # ##?###? | | #?# # """ ## T # ########### ####T## | | #?# # """ ## # ############ | | ##?# # ##! +% ##* # % | +----------------------------------------------------+ Best States ------------- Heat Dissipation 58 Energy Generation 14 Energy Capacity 265 Matter Stores 300 Matter Capacity 300 Sight Range 16 Robot Scan Range 15 Terrain Scan Range 16 Terrain Scan Density 10 Armor Coverage 225 Core Shielding 20 Utility Shielding 33 Evasion (%) 40 Targeting Accuracy 8 Recoil Reduction 3 Defensive Hacking 10 Trap Extractor Capacity 6 Item Schematics ----------------- Huge Storage Unit | -10/Materials | Hacked Mak. Terrain Scanner | -8/Materials | Scanalyzed Imp. Shield Generator | -8/Materials | Scanalyzed Robot Schematics ------------------ M-13 Machinist | -10/Mines | Hacked Fabricated ------------ Nothing Alien Tech Used ----------------- None Achievements -------------- None Challenges ------------ None Game ------ Seed EncryptedMyomerCore Manual? 0 Play Time 01:07:34 Cumulative 375.6 hours Start 2023.01.23 @ 18:02:09 End 2023.02.08 @ 08:44:13 Sessions 5 Manual Loads 0 Difficulty Rogue Special Mode None Game No. 169 Rogue 169 Adventurer 0 Explorer 0 Win Type - Total 9 Types 6/0/1/1/0/0/0/1/0 Lore% 89 Gallery% 91 Achievement% 71 Wizard Run 0 Options --------- ASCII 1 Keyboard 1 Movement Vi Keybinds 0 Fullscreen 2 Font 18/Cog Map View 76x50 Tactical HUD 1 Map Filters NONE Filters NONE Steam 0 RUN: dfacd004-ea0c-46f7-b235-5cbd6b9da786